fUST/lending_fUST_20241225
["ID","MTS","AMOUNT","RATE_DAILY","PERIOD"]
[346566925,1735097449298,-151.0,0.0001329,2]
[346566926,1735097449307,-151.0,0.0001329,2]
[346566927,1735097449317,-151.0,0.0001329,2]
[346566928,1735097449326,-151.0,0.0001329,2]
[346566929,1735097449336,-151.0,0.0001329,2]
[346566930,1735097449346,-151.0,0.0001329,2]
[346566931,1735097449356,-500.0,0.0001329,2]
[346566932,1735097449366,-151.0,0.0001329,2]
[346566933,1735097449375,-151.0,0.0001329,2]
[346566934,1735097449385,-151.0,0.0001329,2]
[346566935,1735097449394,-502.84557999,0.0001329,2]
[346566936,1735097449404,-151.0,0.0001329,2]
[346566937,1735097449414,-151.0,0.0001329,2]
[346566938,1735097449423,-151.0,0.0001329,2]
[346566940,1735097449432,-151.0,0.0001329,2]
[346566941,1735097449443,-151.0,0.0001329,2]
[346566943,1735097449452,-151.0,0.0001329,2]
[346566945,1735097449462,-151.0,0.0001329,2]
[346566947,1735097449472,-177.655433,0.0001329,2]
[346566949,1735097449482,-502.50772852,0.0001329,2]
[346566951,1735097449491,-502.80390902,0.0001329,2]
[346566953,1735097449501,-500.0,0.0001329,2]
[346566955,1735097449510,-500.78571147,0.0001329,2]
[346566957,1735097449521,-502.82109129,0.0001329,2]
[346566959,1735097449531,-1346.51,0.0001329,2]
[346566962,1735097449542,-151.0,0.0001329,2]
[346566964,1735097449552,-151.0,0.0001329,2]
[346566966,1735097449562,-500.0,0.0001329,2]
[346566968,1735097449572,-151.0,0.0001329,2]
[346566970,1735097449582,-151.0,0.0001329,2]
[346566972,1735097449591,-151.0,0.0001329,2]
[346566973,1735097449602,-151.0,0.0001329,2]
[346566974,1735097449612,-151.0,0.0001329,2]
[346566975,1735097449622,-21106.28,0.0001329,2]
[346566976,1735097449632,-500.0,0.0001329,2]
[346566977,1735097449642,-500.0,0.0001329,2]
[346566978,1735097449653,-500.0,0.0001329,2]
[346566979,1735097449663,-233.775016,0.0001329,2]
[346566980,1735097449674,-233.775016,0.0001329,2]
[346566981,1735097449683,-233.775016,0.0001329,2]
[346566982,1735097449693,-233.775016,0.0001329,2]
[346566983,1735097449703,-233.775016,0.0001329,2]
[346566984,1735097449714,-233.775016,0.0001329,2]
[346566985,1735097449724,-233.775016,0.0001329,2]
[346566986,1735097449734,-233.775016,0.0001329,2]
[346566987,1735097449744,-233.775016,0.0001329,2]
[346566988,1735097449754,-233.775026,0.0001329,2]
[346566989,1735097449765,-504.92468743,0.0001329,2]
[346566990,1735097449780,-3455.18,0.0001329,2]
[346566991,1735097449790,-84392.63,0.0001329,2]
[346566992,1735097449802,-151.0,0.0001329,2]
[346566993,1735097449812,-151.0,0.0001329,2]
[346566994,1735097449823,-151.0,0.0001329,2]
[346566995,1735097449832,-151.0,0.0001329,2]
[346566996,1735097449842,-151.0,0.0001329,2]
[346566997,1735097449853,-503.55446332,0.0001329,2]
[346566998,1735097449863,-502.59929788,0.0001329,2]
[346566999,1735097449873,-501.00814687,0.0001329,2]
[346567000,1735097449882,-792.67,0.0001329,2]
[346567001,1735097449892,-500.0,0.0001329,2]
[346567002,1735097449902,-501.70551005,0.0001329,2]
[346567003,1735097449911,-500.0,0.0001329,2]
[346567004,1735097449920,-2650.73,0.0001329,2]
[346567005,1735097449930,-643.61,0.0001329,2]
[346567006,1735097449940,-1289.263323,0.0001329,2]
[346567007,1735097449950,-1289.263323,0.0001329,2]
[346567008,1735097449959,-1289.263323,0.0001329,2]
[346567009,1735097449969,-1289.263323,0.0001329,2]
[346567010,1735097449979,-1289.263323,0.0001329,2]
[346567011,1735097449990,-1289.263323,0.0001329,2]
[346567012,1735097450000,-1289.263323,0.0001329,2]
[346567013,1735097450010,-1289.263323,0.0001329,2]
[346567014,1735097450020,-1289.263323,0.0001329,2]
[346567015,1735097450030,-500.0,0.0001329,2]
[346567016,1735097450041,-1289.263321,0.0001329,2]
[346567017,1735097450051,-151.0,0.00013291,2]
[346567018,1735097450060,-154.049785,0.00013291,2]
[346567019,1735097450069,-293.242229,0.00013291,2]
[346567020,1735097450078,-293.242229,0.00013291,2]
[346567021,1735097450088,-293.242229,0.00013291,2]
[346567022,1735097450097,-293.242229,0.00013291,2]
[346567023,1735097450107,-151.0,0.00013291,2]
[346567024,1735097450116,-151.0,0.00013291,2]
[346567025,1735097450126,-151.0,0.00013291,2]
[346567026,1735097450135,-151.0,0.00013291,2]
[346567027,1735097450145,-288.723665,0.00013291,2]
[346567028,1735097450155,-151.0,0.00013291,2]
[346567029,1735097450164,-151.0,0.00013291,2]
[346567030,1735097450174,-151.0,0.00013291,2]
[346567031,1735097450183,-151.0,0.00013291,2]
[346567032,1735097450192,-151.0,0.00013291,2]
[346567033,1735097450202,-151.0,0.00013291,2]
[346567034,1735097450211,-501.35968707,0.00013291,2]
[346567035,1735097450221,-256.476237,0.00013291,2]
[346567036,1735097450230,-256.476237,0.00013291,2]
[346567037,1735097450240,-256.476237,0.00013291,2]
[346567038,1735097450249,-256.476237,0.00013291,2]
[346567039,1735097450259,-256.476237,0.00013291,2]
[346567040,1735097450268,-256.476237,0.00013291,2]
[346567041,1735097450278,-256.476237,0.00013291,2]
[346567042,1735097450288,-256.476237,0.00013291,2]
[346567043,1735097450297,-1613.08,0.00013291,2]
[346567044,1735097450307,-151.0,0.00013291,2]
[346567045,1735097450316,-151.0,0.00013291,2]
[346567046,1735097450326,-502.31072236,0.00013291,2]
[346567047,1735097450335,-501.60660081,0.00013291,2]
[346567048,1735097450344,-220.84694,0.00013291,2]
[346567049,1735097450354,-220.84694,0.00013291,2]
[346567050,1735097450363,-220.84694,0.00013291,2]
[346567051,1735097450372,-220.84694,0.00013291,2]
[346567052,1735097450382,-220.84694,0.00013291,2]
[346567053,1735097450391,-220.84694,0.00013291,2]
[346567054,1735097450400,-220.84694,0.00013291,2]
[346567055,1735097450410,-220.84694,0.00013291,2]
[346567056,1735097450419,-220.84694,0.00013291,2]
[346567057,1735097450429,-220.84694,0.00013291,2]
[346567058,1735097450439,-220.84694,0.00013291,2]
[346567059,1735097450448,-220.84694,0.00013291,2]
[346567060,1735097450457,-502.67327573,0.00013291,2]
[346567061,1735097450466,-500.98329488,0.00013291,2]
[346567062,1735097450475,-500.0,0.00013291,2]
[346567063,1735097450484,-151.0,0.00013291,2]
[346567064,1735097450494,-151.0,0.00013291,2]
[346567065,1735097450503,-151.0,0.00013291,2]
[346567066,1735097450513,-151.0,0.00013291,2]
[346567067,1735097450523,-151.0,0.00013291,2]
[346567068,1735097450532,-158.416986,0.00013291,2]
[346567069,1735097450542,-500.0,0.00013291,2]
[346567070,1735097450551,-500.0,0.00013291,2]
[346567071,1735097450560,-500.0,0.00013291,2]
[346567072,1735097450570,-500.0,0.00013291,2]
[346567073,1735097450579,-792.58,0.00013291,2]
[346567074,1735097450588,-2679.35,0.00013291,2]
[346567075,1735097450598,-1289.69,0.00013291,2]
[346567076,1735097450607,-762.09,0.00013291,2]
[346567077,1735097450617,-501.49437012,0.00013291,2]
[346567078,1735097450626,-500.0,0.00013291,2]
[346567079,1735097450635,-501.15665779,0.00013291,2]
[346567080,1735097450645,-151.0,0.00013291,2]
[346567081,1735097450655,-151.0,0.00013291,2]
[346567082,1735097450664,-151.0,0.00013291,2]
[346567083,1735097450674,-151.0,0.00013291,2]
[346567084,1735097450683,-790.46,0.00013291,2]
[346567085,1735097450692,-151.0,0.00013291,2]
[346567086,1735097450702,-151.0,0.00013291,2]
[346567087,1735097450712,-151.0,0.00013291,2]
[346567088,1735097450721,-151.0,0.00013291,2]
[346567089,1735097450731,-151.0,0.00013291,2]
[346567090,1735097450858,-501.23409041,0.00013291,2]
[346567091,1735097450868,-151.0,0.00013291,2]
[346567092,1735097450878,-151.0,0.00013291,2]
[346567093,1735097450888,-151.0,0.00013291,2]
[346567094,1735097450897,-500.0,0.00013291,2]
[346567095,1735097450907,-151.0,0.00013291,2]
[346567096,1735097450917,-151.0,0.00013291,2]
[346567097,1735097450926,-223.907503,0.00013291,2]
[346567098,1735097450935,-502.75648706,0.00013291,2]
[346567099,1735097450945,-501.95584403,0.00013291,2]
[346567100,1735097450954,-936.97,0.00013291,2]
[346567101,1735097450964,-697.52,0.00013291,2]
[346567102,1735097450974,-501.81100502,0.00013291,2]
[346567103,1735097450982,-501.61156438,0.00013291,2]
[346567104,1735097450992,-502.00638919,0.00013291,2]
[346567105,1735097451001,-500.0,0.00013291,2]
[346567106,1735097451011,-152.322074,0.00013291,2]
[346567107,1735097451021,-151.0,0.00013291,2]
[346567108,1735097451031,-153.156644,0.00013291,2]
[346567109,1735097451040,-500.0,0.00013291,2]
[346567110,1735097451050,-627.6,0.00013291,2]
[346567111,1735097451059,-500.0,0.00013291,2]
[346567112,1735097451068,-500.0,0.00013291,2]
[346567113,1735097451078,-1275.42,0.00013291,2]
[346567114,1735097451088,-500.0,0.00013291,2]
[346567115,1735097451097,-1127.118028,0.00013291,2]
[346567116,1735097451106,-1127.118028,0.00013291,2]
[346567117,1735097451116,-1127.118028,0.00013291,2]
[346567118,1735097451125,-886.19,0.00013291,2]
[346567119,1735097451135,-1127.118028,0.00013291,2]
[346567120,1735097451144,-1127.118028,0.00013291,2]
[346567121,1735097451153,-1127.118028,0.00013291,2]
[346567122,1735097451163,-1127.118028,0.00013291,2]
[346567123,1735097451173,-1127.118028,0.00013291,2]
[346567124,1735097451182,-1127.118028,0.00013291,2]
[346567125,1735097451191,-1127.118028,0.00013291,2]
[346567126,1735097451200,-1127.118028,0.00013291,2]
[346567127,1735097451209,-1127.118028,0.00013291,2]
[346567128,1735097451219,-500.0,0.00013291,2]
[346567129,1735097451227,-1127.118028,0.00013291,2]
[346567130,1735097451237,-1127.118022,0.00013291,2]
[346567131,1735097451246,-608.37514,0.00013291,2]
[346567132,1735097451255,-608.37514,0.00013291,2]
[346567133,1735097451264,-608.37514,0.00013291,2]
[346567134,1735097451274,-500.0,0.00013291,2]
[346567135,1735097451283,-608.37514,0.00013291,2]
[346567136,1735097451293,-608.37514,0.00013291,2]
[346567137,1735097451302,-608.37514,0.00013291,2]
[346567138,1735097451311,-504.28197104,0.00013291,2]
[346567139,1735097451320,-608.37514,0.00013291,2]
[346567140,1735097451329,-608.37514,0.00013291,2]
[346567141,1735097451339,-608.37514,0.00013291,2]
[346567142,1735097451348,-608.37514,0.00013291,2]
[346567143,1735097451357,-500.0,0.00013291,2]
[346567144,1735097451367,-608.37514,0.00013291,2]
[346567145,1735097451376,-608.375137,0.00013291,2]
[346567146,1735097451385,-1324.015368,0.00013291,2]
[346567147,1735097451394,-1324.015368,0.00013291,2]
[346567148,1735097451404,-1324.015368,0.00013291,2]
[346567149,1735097451413,-1324.015368,0.00013291,2]
[346567150,1735097451422,-1324.015368,0.00013291,2]
[346567151,1735097451431,-1324.015368,0.00013291,2]
[346567152,1735097451440,-1324.015368,0.00013291,2]
[346567153,1735097451449,-500.0,0.00013291,2]
[346567154,1735097451458,-1324.015368,0.00013291,2]
[346567155,1735097451467,-1324.015368,0.00013291,2]
[346567156,1735097451477,-1324.015368,0.00013291,2]
[346567157,1735097451486,-1324.015368,0.00013291,2]
[346567158,1735097451496,-1324.01536517,0.00013291,2]
[346567159,1735097451506,-500.0,0.00013291,2]
[346567160,1735097451515,-568.54153511,0.00013291,2]
[346567161,1735097451525,-500.0,0.00013291,2]
[346567162,1735097451534,-855.64,0.00013291,2]
[346567163,1735097451543,-546.04313,0.00013291,2]
[346567164,1735097451552,-546.04313,0.00013291,2]
[346567165,1735097451561,-546.04313,0.00013291,2]
[346567166,1735097451571,-546.04313,0.00013291,2]
[346567167,1735097451580,-546.04313,0.00013291,2]
[346567168,1735097451589,-546.04313,0.00013291,2]
[346567169,1735097451599,-546.04313,0.00013291,2]
[346567170,1735097451608,-546.04313,0.00013291,2]
[346567171,1735097451618,-546.04313,0.00013291,2]
[346567172,1735097451628,-546.04313,0.00013291,2]
[346567173,1735097451638,-546.04313,0.00013291,2]
[346567174,1735097451647,-546.04313,0.00013291,2]
[346567175,1735097451656,-500.0,0.00013291,2]
[346567176,1735097451665,-500.0,0.00013291,2]
[346567177,1735097451675,-500.0,0.00013291,2]
[346567178,1735097451684,-500.0,0.00013291,2]
[346567179,1735097451694,-19149.15,0.00013291,2]
[346567180,1735097451703,-267.589683,0.00013291,2]
[346567181,1735097451713,-267.589683,0.00013291,2]
[346567182,1735097451723,-267.589683,0.00013291,2]
[346567183,1735097451732,-267.589683,0.00013291,2]
[346567184,1735097451742,-267.589683,0.00013291,2]
[346567185,1735097451751,-267.589683,0.00013291,2]
[346567186,1735097451760,-500.0,0.00013291,2]
[346567187,1735097451770,-267.589683,0.00013291,2]
[346567188,1735097451784,-267.589675,0.00013291,2]
[346567189,1735097451794,-825.920121,0.00013291,2]
[346567190,1735097451803,-239.346566,0.00013291,2]
[346567191,1735097451812,-825.920121,0.00013291,2]
[346567192,1735097451823,-239.346566,0.00013291,2]
[346567193,1735097451832,-825.920121,0.00013291,2]
[346567194,1735097451842,-239.346566,0.00013291,2]
[346567195,1735097451852,-239.346566,0.00013291,2]
[346567196,1735097451862,-825.920121,0.00013291,2]
[346567197,1735097451871,-825.920121,0.00013291,2]
[346567198,1735097451881,-825.920121,0.00013291,2]
[346567199,1735097451891,-825.920121,0.00013291,2]
[346567200,1735097451900,-825.920121,0.00013291,2]
[346567201,1735097451910,-825.920121,0.00013291,2]
[346567202,1735097451919,-825.920121,0.00013291,2]
[346567203,1735097451928,-825.920121,0.00013291,2]
[346567204,1735097451938,-239.346566,0.00013291,2]
[346567205,1735097451947,-825.9201151,0.00013291,2]
[346567206,1735097451956,-239.346566,0.00013291,2]
[346567207,1735097451965,-389.514579,0.00013291,2]
[346567208,1735097451975,-239.346566,0.00013291,2]
[346567209,1735097451984,-389.514579,0.00013291,2]
[346567210,1735097451993,-239.346575,0.00013291,2]
[346567211,1735097452002,-389.514579,0.00013291,2]
[346567212,1735097452011,-389.514579,0.00013291,2]
[346567213,1735097452021,-389.514579,0.00013291,2]
[346567214,1735097452031,-389.514579,0.00013291,2]
[346567215,1735097452041,-389.514579,0.00013291,2]
[346567216,1735097452051,-389.514579,0.00013291,2]
[346567217,1735097452061,-389.514579,0.00013291,2]
[346567218,1735097452071,-389.514579,0.00013291,2]
[346567219,1735097452080,-389.514579,0.00013291,2]
[346567220,1735097452091,-389.514587,0.00013291,2]
[346567221,1735097452101,-500.0,0.00013291,2]
[346567222,1735097452111,-500.0,0.00013291,2]
[346567223,1735097452120,-200.030491,0.00013291,2]
[346567224,1735097452130,-500.0,0.00013291,2]
[346567225,1735097452140,-200.030496,0.00013291,2]
[346567226,1735097452149,-2664.98,0.00013291,2]
[346567227,1735097452158,-521.51981759,0.00013291,2]
[346567228,1735097452168,-500.0,0.00013291,2]
[346567229,1735097452177,-559.11386266,0.00013291,2]
[346567230,1735097452187,-747.110919,0.00013291,2]
[346567231,1735097452196,-500.0,0.00013291,2]
[346567232,1735097452206,-225.848251,0.00013291,2]
[346567233,1735097452215,-747.110925,0.00013291,2]
[346567234,1735097452224,-225.848243,0.00013291,2]
[346567235,1735097452233,-609.33,0.00013291,2]
[346567236,1735097452243,-500.0,0.00013291,2]
[346567237,1735097452252,-500.0,0.00013291,2]
[346567238,1735097452261,-538.99945432,0.00013291,2]
[346567239,1735097452270,-500.0,0.00013291,2]
[346567240,1735097452280,-1850.73,0.00013291,2]
[346567241,1735097452289,-2489.7,0.00013291,2]
[346567242,1735097452299,-500.0,0.00013291,2]
[346567243,1735097452308,-1560.24,0.00013291,2]
[346567244,1735097452318,-503.34446218,0.00013291,2]
[346567245,1735097452327,-707.04,0.00013291,2]
[346567246,1735097452336,-753.54,0.00013291,2]
[346567247,1735097452345,-430.83775697,0.00013291,2]
[346567248,1735097452354,-699.18,0.00013291,2]
[346567249,1735097452364,-956.75,0.00013291,2]
[346567250,1735097452373,-503.75155197,0.00013291,2]
[346567251,1735097452382,-501.56831627,0.00013291,2]
[346567252,1735097452391,-500.25064088,0.00013291,2]
[346567253,1735097452400,-161.3704992,0.00013348,2]
[346567254,1735097452409,-266.09810013,0.00013373,2]
[346567255,1735097452419,-500.0,0.00013373,2]
[346567256,1735097452428,-151.0,0.00013381,2]
[346567257,1735097452437,-151.0,0.00013381,2]
[346567258,1735097452446,-151.0,0.00013381,2]
[346567259,1735097452455,-151.0,0.00013381,2]
[346567260,1735097452464,-293.242229,0.00013381,2]
[346567261,1735097452474,-293.242229,0.00013381,2]
[346567262,1735097452483,-151.0,0.00013381,2]
[346567263,1735097452492,-151.0,0.00013381,2]
[346567264,1735097452501,-151.0,0.00013381,2]
[346567265,1735097452511,-151.0,0.00013381,2]
[346567266,1735097452520,-151.0,0.00013381,2]
[346567267,1735097452531,-151.0,0.00013381,2]
[346567268,1735097452540,-151.0,0.00013381,2]
[346567269,1735097452549,-151.0,0.00013381,2]
[346567270,1735097452558,-151.0,0.00013381,2]
[346567271,1735097452568,-256.476237,0.00013381,2]
[346567272,1735097452577,-256.476237,0.00013381,2]
[346567273,1735097452586,-256.476237,0.00013381,2]
[346567274,1735097452595,-256.476237,0.00013381,2]
[346567275,1735097452604,-151.0,0.00013381,2]
[346567276,1735097452614,-151.0,0.00013381,2]
[346567277,1735097452624,-220.84694,0.00013381,2]
[346567278,1735097452633,-220.84694,0.00013381,2]
[346567279,1735097452642,-220.84694,0.00013381,2]
[346567280,1735097452652,-220.84694,0.00013381,2]
[346567281,1735097452660,-220.84694,0.00013381,2]
[346567282,1735097452669,-220.84694,0.00013381,2]
[346567283,1735097452679,-151.0,0.00013382,2]
[346567284,1735097452689,-151.8109,0.00013382,2]
[346567285,1735097452698,-500.0,0.00013382,2]
[346567286,1735097452707,-500.0,0.00013382,2]
[346567287,1735097452717,-529.09576238,0.00013382,2]
[346567288,1735097452726,-293.242229,0.00013382,2]
[346567289,1735097452735,-293.242229,0.00013382,2]
[346567290,1735097452744,-293.242229,0.00013382,2]
[346567291,1735097452753,-293.242229,0.00013382,2]
[346567292,1735097452762,-293.242229,0.00013382,2]
[346567293,1735097452771,-293.242229,0.00013382,2]
[346567294,1735097452784,-293.242229,0.00013382,2]
[346567295,1735097452793,-293.242229,0.00013382,2]
[346567296,1735097452802,-293.242229,0.00013382,2]
[346567297,1735097452811,-293.242229,0.00013382,2]
[346567298,1735097452820,-293.242229,0.00013382,2]
[346567299,1735097452830,-293.242229,0.00013382,2]
[346567300,1735097452839,-293.242229,0.00013382,2]
[346567301,1735097452849,-293.242228,0.00013382,2]
[346567302,1735097452858,-151.0,0.00013382,2]
[346567303,1735097452868,-274.89264,0.00013382,2]
[346567304,1735097452877,-500.0,0.00013382,2]
[346567305,1735097452887,-500.0,0.00013382,2]
[346567306,1735097452897,-500.0,0.00013382,2]
[346567307,1735097452906,-500.0,0.00013382,2]
[346567308,1735097452916,-501.42341367,0.00013382,2]
[346567309,1735097452926,-502.742708,0.00013382,2]
[346567310,1735097452935,-151.0,0.00013382,2]
[346567311,1735097453076,-151.0,0.00013382,2]
[346567312,1735097453086,-151.0,0.00013382,2]
[346567313,1735097453096,-151.0,0.00013382,2]
[346567314,1735097453105,-151.0,0.00013382,2]
[346567315,1735097453114,-187.932832,0.00013382,2]
[346567316,1735097453123,-501.23251234,0.00013382,2]
[346567317,1735097453133,-500.0,0.00013382,2]
[346567318,1735097453142,-500.0,0.00013382,2]
[346567319,1735097453151,-500.0,0.00013382,2]
[346567320,1735097453160,-503.86831074,0.00013382,2]
[346567321,1735097453170,-151.0,0.00013382,2]
[346567322,1735097453180,-151.0,0.00013382,2]
[346567323,1735097453189,-151.0,0.00013382,2]
[346567324,1735097453198,-151.0,0.00013382,2]
[346567325,1735097453208,-151.0,0.00013382,2]
[346567326,1735097453217,-151.0,0.00013382,2]
[346567327,1735097453227,-155.871142,0.00013382,2]
[346567328,1735097453236,-151.0,0.00013382,2]
[346567329,1735097453244,-151.0,0.00013382,2]
[346567330,1735097453254,-151.0,0.00013382,2]
[346567331,1735097453263,-189.769813,0.00013382,2]
[346567332,1735097453275,-500.0,0.00013382,2]
[346567333,1735097453285,-504.28868748,0.00013382,2]
[346567334,1735097453294,-500.0,0.00013382,2]
[346567335,1735097453304,-500.0,0.00013382,2]
[346567336,1735097453313,-256.476237,0.00013382,2]
[346567337,1735097453322,-256.476237,0.00013382,2]
[346567338,1735097453331,-256.476237,0.00013382,2]
[346567339,1735097453339,-256.476237,0.00013382,2]
[346567340,1735097453348,-256.476237,0.00013382,2]
[346567341,1735097453357,-256.476237,0.00013382,2]
[346567342,1735097453366,-256.476237,0.00013382,2]
[346567343,1735097453375,-256.47624,0.00013382,2]
[346567344,1735097453384,-151.0,0.00013382,2]
[346567345,1735097453393,-151.0,0.00013382,2]
[346567346,1735097453404,-152.773413,0.00013382,2]
[346567347,1735097453413,-502.42504479,0.00013382,2]
[346567348,1735097453422,-501.55708692,0.00013382,2]
[346567349,1735097453431,-500.0,0.00013382,2]
[346567350,1735097453440,-220.84694,0.00013382,2]
[346567351,1735097453450,-501.16490998,0.00013382,2]
[346567352,1735097453459,-220.846933,0.00013382,2]
[346567353,1735097453468,-500.0,0.00013382,2]
[346567354,1735097453477,-500.0,0.00013382,2]
[346567355,1735097453486,-965.74,0.00013382,2]
[346567356,1735097453495,-500.0,0.00013382,2]
[346567357,1735097453504,-500.0,0.00013382,2]
[346567358,1735097453514,-502.80409798,0.00013382,2]
[346567359,1735097453523,-502.03253694,0.00013382,2]
[346567360,1735097453533,-500.0,0.00013382,2]
[346567361,1735097453542,-500.0,0.00013382,2]
[346567362,1735097453551,-502.47246897,0.00013382,2]
[346567363,1735097453560,-151.0,0.00013388,2]
[346567364,1735097453569,-151.0,0.000134,2]
[346567365,1735097453579,-151.0,0.000134,2]
[346567366,1735097453587,-151.0,0.000134,2]
[346567367,1735097453597,-151.0,0.000134,2]
[346567368,1735097453606,-151.0,0.000134,2]
[346567369,1735097453615,-151.0,0.000134,2]
[346567370,1735097453624,-151.0,0.000134,2]
[346567371,1735097453633,-151.0,0.000134,2]
[346567372,1735097453643,-151.0,0.000134,2]
[346567373,1735097453652,-151.0,0.000134,2]
[346567374,1735097453662,-306.0,0.000134,2]
[346567375,1735097453671,-153.3554759,0.000134,2]
[346567376,1735097453680,-426.049218,0.000134,2]
[346567377,1735097453690,-816.55192406,0.0001345,2]
[346567378,1735097453699,-500.0,0.00013473,2]
[346567379,1735097453708,-500.77914922,0.0001348,2]
[346567380,1735097453718,-527.09630964,0.0001348,2]
[346567381,1735097453727,-500.0,0.0001348,2]
[346567382,1735097453737,-500.0,0.0001348,2]
[346567383,1735097453746,-500.0,0.0001348,2]
[346567384,1735097453755,-500.0,0.0001348,2]
[346567385,1735097453764,-500.0,0.0001348,2]
[346567386,1735097453777,-500.0,0.0001348,2]
[346567387,1735097453786,-500.0,0.0001348,2]
[346567388,1735097453797,-500.0,0.0001348,2]
[346567389,1735097453806,-500.0,0.0001348,2]
[346567390,1735097453817,-500.0,0.0001348,2]
[346567391,1735097453827,-500.0,0.0001348,2]
[346567392,1735097453837,-844.36,0.0001348,2]
[346567393,1735097453846,-500.0,0.0001348,2]
[346567394,1735097453857,-466.68532203,0.0001348,2]
[346567395,1735097453866,-502.4998943,0.0001348,2]
[346567396,1735097453875,-500.0,0.0001348,2]
[346567397,1735097453885,-500.0,0.0001348,2]
[346567398,1735097453894,-482.35625349,0.0001348,2]
[346567399,1735097453903,-500.0,0.0001348,2]
[346567400,1735097453912,-500.0,0.0001348,2]
[346567401,1735097453922,-502.19623513,0.0001348,2]
[346567402,1735097453931,-500.0,0.0001348,2]
[346567403,1735097453940,-812.22,0.0001348,2]
[346567404,1735097453950,-503.04309103,0.0001348,2]
[346567405,1735097453959,-501.86363086,0.0001348,2]
[346567406,1735097453968,-500.0,0.0001348,2]
[346567407,1735097453977,-500.0,0.0001348,2]
[346567408,1735097453986,-500.0,0.0001348,2]
[346567409,1735097453995,-500.0,0.0001348,2]
[346567410,1735097454005,-500.0,0.0001348,2]
[346567411,1735097454014,-583.58205145,0.0001348,2]
[346567412,1735097454023,-500.0,0.0001348,2]
[346567413,1735097454032,-704.41,0.0001348,2]
[346567414,1735097454041,-500.0,0.0001348,2]
[346567415,1735097454051,-500.0,0.0001348,2]
[346567416,1735097454060,-500.0,0.0001348,2]
[346567417,1735097454069,-500.0,0.0001348,2]
[346567418,1735097454078,-500.0,0.0001348,2]
[346567419,1735097454087,-685.62,0.0001348,2]
[346567420,1735097454096,-500.0,0.0001348,2]
[346567421,1735097454106,-500.0,0.0001348,2]
[346567422,1735097454115,-612.91608611,0.0001348,2]
[346567423,1735097454124,-500.0,0.0001348,2]
[346567424,1735097454133,-789.16,0.0001348,2]
[346567425,1735097454143,-500.76730367,0.0001348,2]
[346567426,1735097454152,-500.0,0.0001348,2]
[346567427,1735097454161,-500.97947964,0.0001348,2]
[346567428,1735097454170,-503.68014926,0.0001348,2]
[346567429,1735097454179,-1168.11,0.0001348,2]
[346567430,1735097454188,-504.68229357,0.0001348,2]
[346567431,1735097454197,-503.02683705,0.0001348,2]
[346567432,1735097454207,-1325.2,0.0001348,2]
[346567433,1735097454216,-503.32100321,0.0001348,2]
[346567434,1735097454226,-547.79,0.0001348,2]
[346567435,1735097454235,-597.98,0.0001348,2]
[346567436,1735097454245,-500.0,0.0001348,2]
[346567437,1735097454254,-500.72573037,0.0001348,2]
[346567438,1735097454263,-500.0,0.0001348,2]
[346567439,1735097454272,-500.0,0.0001348,2]
[346567440,1735097454282,-502.54750812,0.0001348,2]
[346567441,1735097454291,-500.0,0.0001348,2]